fUSD/lending_fUSD_20240803
["ID","MTS","AMOUNT","RATE_DAILY","PERIOD"]
[333981745,1722666649814,-967.31,0.00016438,2]
[333981746,1722666649823,-967.31,0.00016438,2]
[333981747,1722666649832,-967.31,0.00016438,2]
[333981748,1722666649842,-500.0,0.00016438,2]
[333981749,1722666649851,-967.31,0.00016438,2]
[333981750,1722666649860,-967.31,0.00016438,2]
[333981751,1722666649869,-967.31,0.00016438,2]
[333981752,1722666649878,-500.0,0.00016438,2]
[333981753,1722666649887,-967.31,0.00016438,2]
[333981754,1722666649896,-500.0,0.00016438,2]
[333981755,1722666649905,-500.0,0.00016438,2]
[333981756,1722666649914,-967.4849,0.00016438,2]
[333981757,1722666649923,-500.0,0.00016438,2]
[333981758,1722666649932,-502.36344444,0.00016438,2]
[333981759,1722666649942,-500.0,0.00016438,2]
[333981760,1722666649951,-500.0,0.00016438,2]
[333981761,1722666649960,-502.07620388,0.00016438,2]
[333981762,1722666649969,-500.0,0.00016438,2]
[333981763,1722666649978,-529.69764446,0.00016438,2]
[333981764,1722666649988,-742.79,0.00016438,2]
[333981765,1722666649997,-500.0,0.00016438,2]
[333981766,1722666650007,-501.80021769,0.00016438,2]
[333981767,1722666650016,-500.0,0.00016438,2]
[333981768,1722666650025,-500.0,0.00016438,2]
[333981769,1722666650035,-500.0,0.00016438,2]
[333981770,1722666650044,-500.0,0.00016438,2]
[333981771,1722666650053,-500.0,0.00016438,2]
[333981772,1722666650063,-466.122221,0.00016438,2]
[333981773,1722666650072,-466.122221,0.00016438,2]
[333981774,1722666650082,-500.0,0.00016438,2]
[333981775,1722666650091,-1144.59,0.00016438,2]
[333981776,1722666650100,-500.0,0.00016438,2]
[333981777,1722666650109,-503.88843794,0.00016438,2]
[333981778,1722666650118,-466.122221,0.00016438,2]
[333981779,1722666650127,-500.0,0.00016438,2]
[333981780,1722666650136,-466.122221,0.00016438,2]
[333981781,1722666650146,-500.0,0.00016438,2]
[333981782,1722666650156,-500.41,0.00016438,2]
[333981783,1722666650165,-502.22609715,0.00016438,2]
[333981784,1722666650175,-500.0,0.00016438,2]
[333981785,1722666650184,-500.0,0.00016438,2]
[333981786,1722666650193,-502.00667275,0.00016438,2]
[333981787,1722666650203,-591.2,0.00016438,2]
[333981788,1722666650212,-500.0,0.00016438,2]
[333981789,1722666650221,-501.02004986,0.00016438,2]
[333981790,1722666650230,-500.0,0.00016438,2]
[333981791,1722666650240,-500.0,0.00016438,2]
[333981792,1722666650249,-500.0,0.00016438,2]
[333981793,1722666650259,-500.0,0.00016438,2]
[333981794,1722666650268,-500.0,0.00016438,2]
[333981795,1722666650277,-500.0,0.00016438,2]
[333981796,1722666650287,-800.028529,0.00016438,2]
[333981797,1722666650296,-800.028529,0.00016438,2]
[333981798,1722666650305,-501.42917923,0.00016438,2]
[333981799,1722666650314,-374.29064067,0.00016438,2]
[333981800,1722666650324,-151.0,0.00016438,2]
[333981801,1722666650333,-151.0,0.00016438,2]
[333981802,1722666650342,-500.0,0.00016438,2]
[333981803,1722666650352,-500.0,0.00016438,2]
[333981804,1722666650361,-500.0,0.00016438,2]
[333981805,1722666650371,-800.028529,0.00016438,2]
[333981806,1722666650380,-800.028529,0.00016438,2]
[333981807,1722666650389,-500.0,0.00016438,2]
[333981808,1722666650398,-500.92928408,0.00016438,2]
[333981809,1722666650408,-618.72947323,0.00016438,2]
[333981810,1722666650417,-500.0,0.00016438,2]
[333981811,1722666650427,-500.0,0.00016438,2]
[333981812,1722666650436,-667.95,0.00016438,2]
[333981813,1722666650445,-500.0,0.00016438,2]
[333981814,1722666650456,-628.18936392,0.00016438,2]
[333981815,1722666650465,-500.0,0.00016438,2]
[333981816,1722666650475,-500.0,0.00016438,2]
[333981817,1722666650489,-500.0,0.00016438,2]
[333981818,1722666650498,-500.0,0.00016438,2]
[333981819,1722666650508,-710.02,0.00016438,2]
[333981820,1722666650517,-1017.87,0.00016438,2]
[333981821,1722666650526,-586.31,0.00016438,2]
[333981822,1722666650536,-503.33634019,0.00016438,2]
[333981823,1722666650545,-500.0,0.00016438,2]
[333981824,1722666650554,-500.95784951,0.00016438,2]
[333981825,1722666650564,-1326.03,0.00016438,2]
[333981826,1722666650574,-628.24,0.00016438,2]
[333981827,1722666650583,-689.07,0.00016438,2]
[333981828,1722666650592,-500.0,0.00016438,2]
[333981829,1722666650601,-500.0,0.00016438,2]
[333981830,1722666650611,-500.0,0.00016438,2]
[333981831,1722666650620,-312.38738082,0.00016438,2]
[333981832,1722666650633,-500.0,0.00016438,2]
[333981833,1722666650643,-500.0,0.00016438,2]
[333981834,1722666650652,-525.679238,0.00016438,2]
[333981835,1722666650662,-525.679238,0.00016438,2]
[333981836,1722666650673,-501.29303795,0.00016438,2]
[333981837,1722666650683,-554.01,0.00016438,2]
[333981838,1722666650692,-500.0,0.00016438,2]
[333981839,1722666650706,-501.03474532,0.00016438,2]
[333981840,1722666650716,-500.0,0.00016438,2]
[333981841,1722666650725,-500.0,0.00016438,2]
[333981842,1722666650737,-500.0,0.00016438,2]
[333981843,1722666650748,-500.0,0.00016438,2]
[333981844,1722666650758,-525.679238,0.00016438,2]
[333981845,1722666650768,-525.679238,0.00016438,2]
[333981846,1722666650778,-502.72850827,0.00016438,2]
[333981847,1722666650788,-500.0,0.00016438,2]
[333981848,1722666650799,-835.2,0.00016438,2]
[333981849,1722666650808,-500.0,0.00016438,2]
[333981850,1722666650817,-512.49959568,0.00016438,2]
[333981851,1722666650826,-500.0,0.00016438,2]
[333981852,1722666650835,-502.08542022,0.00016438,2]
[333981853,1722666650845,-151.0,0.00016438,2]
[333981854,1722666650855,-151.0,0.00016438,2]
[333981855,1722666650866,-151.0,0.00016438,2]
[333981856,1722666650876,-151.0,0.00016438,2]
[333981857,1722666650885,-541.45,0.00016438,2]
[333981858,1722666650894,-500.0,0.00016438,2]
[333981859,1722666650905,-500.0,0.00016438,2]
[333981860,1722666650914,-500.0,0.00016438,2]
[333981861,1722666650933,-1060.7,0.00016438,2]
[333981862,1722666650944,-500.0,0.00016438,2]
[333981863,1722666650954,-500.0,0.00016438,2]
[333981864,1722666650965,-561.25,0.00016438,2]
[333981865,1722666650976,-501.16036229,0.00016438,2]
[333981866,1722666650986,-573.22,0.00016438,2]
[333981867,1722666650996,-500.0,0.00016438,2]
[333981868,1722666651006,-500.0,0.00016438,2]
[333981869,1722666651016,-500.0,0.00016438,2]
[333981870,1722666651026,-500.87898915,0.00016438,2]
[333981871,1722666651035,-500.0,0.00016438,2]
[333981872,1722666651045,-686.47,0.00016438,2]
[333981873,1722666651055,-500.0,0.00016438,2]
[333981874,1722666651066,-279.23377101,0.00016438,2]
[333981875,1722666651076,-500.0,0.00016438,2]
[333981876,1722666651087,-500.0,0.00016438,2]
[333981877,1722666651097,-1223.77,0.00016438,2]
[333981878,1722666651108,-536.51,0.00016438,2]
[333981879,1722666651121,-500.0,0.00016438,2]
[333981880,1722666651131,-500.0,0.00016438,2]
[333981881,1722666651141,-500.0,0.00016438,2]
[333981882,1722666651151,-500.0,0.00016438,2]
[333981883,1722666651162,-500.0,0.00016438,2]
[333981884,1722666651171,-500.0,0.00016438,2]
[333981885,1722666651314,-195.068578,0.00016438,2]
[333981886,1722666651364,-500.0,0.00016438,2]
[333981887,1722666651374,-195.068578,0.00016438,2]
[333981888,1722666651385,-151.0,0.00016438,2]
[333981889,1722666651395,-500.0,0.00016438,2]
[333981890,1722666651405,-151.0,0.00016438,2]
[333981891,1722666651415,-500.0,0.00016438,2]
[333981892,1722666651424,-500.0,0.00016438,2]
[333981893,1722666651434,-195.068578,0.00016438,2]
[333981894,1722666651444,-195.068578,0.00016438,2]
[333981895,1722666651453,-1013.66,0.00016438,2]
[333981896,1722666651465,-151.0,0.00016438,2]
[333981897,1722666651474,-500.0,0.00016438,2]
[333981898,1722666651484,-151.0,0.00016438,2]
[333981899,1722666651495,-581.73,0.00016438,2]
[333981900,1722666651505,-500.0,0.00016438,2]
[333981901,1722666651516,-500.0,0.00016438,2]
[333981902,1722666651526,-500.0,0.00016438,2]
[333981903,1722666651537,-500.0,0.00016438,2]
[333981904,1722666651549,-500.0,0.00016438,2]
[333981905,1722666651559,-500.0,0.00016438,2]
[333981906,1722666651570,-500.0,0.00016438,2]
[333981907,1722666651579,-485.63305623,0.00016438,2]
[333981908,1722666651589,-500.0,0.00016438,2]
[333981909,1722666651598,-500.0,0.00016438,2]
[333981910,1722666651607,-500.72101828,0.00016438,2]
[333981911,1722666651617,-610.39821529,0.00016438,2]
[333981912,1722666651629,-500.0,0.00016438,2]
[333981913,1722666651639,-500.0,0.00016438,2]
[333981914,1722666651648,-818.75,0.00016438,2]
[333981915,1722666651658,-500.0,0.00016438,2]
[333981916,1722666651667,-500.0,0.00016438,2]
[333981917,1722666651678,-501.21308077,0.00016438,2]
[333981918,1722666651687,-500.0,0.00016438,2]
[333981919,1722666651696,-500.0,0.00016438,2]
[333981920,1722666651708,-500.0,0.00016438,2]
[333981921,1722666651718,-508.88283446,0.00016438,2]
[333981922,1722666651727,-151.0,0.00016438,2]
[333981923,1722666651737,-151.203656,0.00016438,2]
[333981924,1722666651746,-500.0,0.00016438,2]
[333981925,1722666651755,-500.0,0.00016438,2]
[333981926,1722666651765,-500.0,0.00016438,2]
[333981927,1722666651774,-500.0,0.00016438,2]
[333981928,1722666651783,-500.0,0.00016438,2]
[333981929,1722666651793,-500.0,0.00016438,2]
[333981930,1722666651802,-151.0,0.00016438,2]
[333981931,1722666651811,-151.0,0.00016438,2]
[333981932,1722666651820,-500.0,0.00016438,2]
[333981933,1722666651830,-500.0,0.00016438,2]
[333981934,1722666651839,-500.0,0.00016438,2]
[333981935,1722666651848,-500.0,0.00016438,2]
[333981936,1722666651858,-500.0,0.00016438,2]
[333981937,1722666651867,-151.0,0.00016438,2]
[333981938,1722666651877,-151.0,0.00016438,2]
[333981939,1722666651886,-151.0,0.00016438,2]
[333981940,1722666651896,-500.0,0.00016438,2]
[333981941,1722666651905,-151.0,0.00016438,2]
[333981942,1722666651920,-164.036848,0.00016438,2]
[333981943,1722666651930,-500.0,0.00016438,2]
[333981944,1722666651939,-500.0,0.00016438,2]
[333981945,1722666651949,-500.0,0.00016438,2]
[333981946,1722666651958,-500.0,0.00016438,2]
[333981947,1722666651968,-500.0,0.00016438,2]
[333981948,1722666651977,-416.11924039,0.00016438,2]
[333981949,1722666651987,-500.0,0.00016438,2]
[333981950,1722666651997,-500.0,0.00016438,2]
[333981951,1722666652007,-500.0,0.00016438,2]
[333981952,1722666652016,-500.0,0.00016438,2]
[333981953,1722666652026,-500.0,0.00016438,2]
[333981954,1722666652035,-500.0,0.00016438,2]
[333981955,1722666652044,-500.0,0.00016438,2]
[333981956,1722666652054,-300.896731,0.00016438,2]
[333981957,1722666652063,-500.0,0.00016438,2]
[333981958,1722666652073,-899.56,0.00016438,2]
[333981959,1722666652082,-500.0,0.00016438,2]
[333981960,1722666652091,-500.0,0.00016438,2]
[333981961,1722666652101,-151.0,0.00016438,2]
[333981962,1722666652110,-151.0,0.00016438,2]
[333981963,1722666652120,-500.0,0.00016438,2]
[333981964,1722666652130,-151.0,0.00016438,2]
[333981965,1722666652140,-151.0,0.00016438,2]
[333981966,1722666652150,-500.0,0.00016438,2]
[333981967,1722666652160,-1080.66,0.00016438,2]
[333981968,1722666652170,-151.0,0.00016438,2]
[333981969,1722666652179,-167.952555,0.00016438,2]
[333981970,1722666652190,-500.0,0.00016438,2]
[333981971,1722666652199,-500.0,0.00016438,2]
[333981972,1722666652209,-500.0,0.00016438,2]
[333981973,1722666652218,-500.0,0.00016438,2]
[333981974,1722666652227,-500.0,0.00016438,2]
[333981975,1722666652237,-500.0,0.00016438,2]
[333981976,1722666652246,-151.408244,0.00016438,2]
[333981977,1722666652255,-175.72407622,0.00016438,2]
[333981978,1722666652264,-500.0,0.00016438,2]
[333981979,1722666652274,-500.84257124,0.00016438,2]
[333981980,1722666652283,-151.0,0.00016438,2]
[333981981,1722666652292,-151.0,0.00016438,2]
[333981982,1722666652301,-500.0,0.00016438,2]
[333981983,1722666652311,-500.0,0.00016438,2]
[333981984,1722666652320,-500.7039778,0.00016438,2]
[333981985,1722666652329,-500.0,0.00016438,2]
[333981986,1722666652339,-357.21783456,0.00016438,2]
[333981987,1722666652348,-500.0,0.00016438,2]
[333981988,1722666652358,-500.0,0.00016438,2]
[333981989,1722666652368,-713.4,0.00016438,2]
[333981990,1722666652377,-378.85592604,0.00016438,2]
[333981991,1722666652387,-207.75693578,0.00016438,2]
[333981992,1722666652397,-500.0,0.00016438,2]
[333981993,1722666652410,-500.0,0.00016438,2]
[333981994,1722666652420,-500.0,0.00016438,2]
[333981995,1722666652429,-308.72424502,0.00016438,2]
[333981996,1722666652439,-151.0,0.00016438,2]
[333981997,1722666652449,-151.0,0.00016438,2]
[333981998,1722666652459,-500.0,0.00016438,2]
[333981999,1722666652469,-151.0,0.00016438,2]
[333982000,1722666652479,-151.0,0.00016438,2]
[333982001,1722666652488,-151.0,0.00016438,2]
[333982002,1722666652498,-151.0,0.00016438,2]
[333982003,1722666652508,-513.0,0.00016438,2]
[333982004,1722666652517,-1040.19,0.00016438,2]
[333982005,1722666652527,-500.0,0.00016438,2]
[333982006,1722666652537,-500.0,0.00016438,2]
[333982007,1722666652546,-500.0,0.00016438,2]
[333982008,1722666652556,-992.68,0.00016438,2]
[333982009,1722666652566,-500.0,0.00016438,2]
[333982010,1722666652575,-521.61,0.00016438,2]
[333982011,1722666652585,-151.239759,0.00016438,2]
[333982012,1722666652594,-500.0,0.00016438,2]
[333982013,1722666652604,-377.53059827,0.00016438,2]
[333982014,1722666652613,-500.0,0.00016438,2]
[333982015,1722666652623,-577.74,0.00016438,2]
[333982016,1722666652640,-500.0,0.00016438,2]
[333982017,1722666652650,-500.0,0.00016438,2]
[333982018,1722666652660,-500.0,0.00016438,2]
[333982019,1722666652672,-500.0,0.00016438,2]
[333982020,1722666652682,-645.01,0.00016438,2]
[333982021,1722666652691,-500.0,0.00016438,2]
[333982022,1722666652704,-500.0,0.00016438,2]
[333982023,1722666652715,-500.0,0.00016438,2]
[333982024,1722666652724,-500.0,0.00016438,2]
[333982025,1722666652734,-500.0,0.00016438,2]
[333982026,1722666652743,-500.0,0.00016438,2]
[333982027,1722666652754,-500.0,0.00016438,2]
[333982028,1722666652763,-500.0,0.00016438,2]
[333982029,1722666652772,-500.6403902,0.00016438,2]
[333982030,1722666652782,-500.0,0.00016438,2]
[333982031,1722666652791,-500.0,0.00016438,2]
[333982032,1722666652801,-500.0,0.00016438,2]
[333982033,1722666652811,-500.0,0.00016438,2]
[333982034,1722666652820,-500.0,0.00016438,2]
[333982035,1722666652829,-5000.0,0.00016438,2]
[333982036,1722666652839,-500.0,0.00016438,2]
[333982037,1722666652848,-500.0,0.00016438,2]
[333982038,1722666652857,-775.07,0.00016438,2]
[333982039,1722666652867,-305.99605874,0.00016438,2]
[333982040,1722666652876,-500.0,0.00016438,2]
[333982041,1722666652886,-500.0,0.00016438,2]
[333982042,1722666652896,-500.0,0.00016438,2]
[333982043,1722666652906,-500.0,0.00016438,2]
[333982044,1722666652915,-500.0,0.00016438,2]
[333982045,1722666652926,-500.0,0.00016438,2]
[333982046,1722666652935,-502.26365005,0.00016438,2]
[333982047,1722666652944,-968.44,0.00016438,2]
[333982048,1722666652954,-500.0,0.00016438,2]
[333982049,1722666652963,-500.0,0.00016438,2]
[333982050,1722666652973,-500.0,0.00016438,2]
[333982051,1722666652982,-500.0,0.00016438,2]
[333982052,1722666652991,-428.14344906,0.00016438,2]
[333982053,1722666653001,-500.0,0.00016438,2]
[333982054,1722666653010,-1060.45,0.00016438,2]
[333982055,1722666653019,-504.01814389,0.00016438,2]
[333982056,1722666653029,-500.0,0.00016438,2]
[333982057,1722666653038,-925.11,0.00016438,2]
[333982058,1722666653047,-500.0,0.00016438,2]
[333982059,1722666653057,-151.0,0.00016438,2]
[333982060,1722666653067,-500.0,0.00016438,2]
[333982061,1722666653077,-500.0,0.00016438,2]
[333982062,1722666653086,-151.0,0.00016438,2]
[333982063,1722666653095,-501.21246324,0.00016438,2]
[333982064,1722666653105,-889.34,0.00016438,2]
[333982065,1722666653115,-500.0,0.00016438,2]
[333982066,1722666653124,-500.0,0.00016438,2]
[333982067,1722666653133,-500.0,0.00016438,2]
[333982068,1722666653142,-501.19075396,0.00016438,2]
[333982069,1722666653152,-500.0,0.00016438,2]
[333982070,1722666653162,-500.0,0.00016438,2]
[333982071,1722666653171,-500.0,0.00016438,2]
[333982072,1722666653181,-500.0,0.00016438,2]
[333982073,1722666653190,-593.73,0.00016438,2]
[333982074,1722666653200,-500.0,0.00016438,2]
[333982075,1722666653209,-500.0,0.00016438,2]
[333982076,1722666653219,-500.0,0.00016438,2]
[333982077,1722666653229,-500.0,0.00016438,2]
[333982078,1722666653239,-500.0,0.00016438,2]
[333982079,1722666653249,-340.71896907,0.00016438,2]
[333982080,1722666653259,-500.0,0.00016438,2]
[333982081,1722666653269,-997.26,0.00016438,2]
[333982082,1722666653278,-500.0,0.00016438,2]
[333982083,1722666653288,-637.94,0.00016438,2]
[333982084,1722666653298,-501.18042139,0.00016438,2]
[333982085,1722666653308,-1442.56,0.00016438,2]
[333982086,1722666653318,-720.84,0.00016438,2]
[333982087,1722666653328,-500.0,0.00016438,2]
[333982088,1722666653338,-500.0,0.00016438,2]
[333982089,1722666653348,-500.0,0.00016438,2]
[333982090,1722666653358,-501.00022971,0.00016438,2]
[333982091,1722666653368,-600.01,0.00016438,2]
[333982092,1722666653378,-500.77574578,0.00016438,2]
[333982093,1722666653387,-500.0,0.00016438,2]
[333982094,1722666653398,-959.37,0.00016438,2]
[333982095,1722666653408,-500.0,0.00016438,2]
[333982096,1722666653418,-500.0,0.00016438,2]
[333982097,1722666653428,-501.27860365,0.00016438,2]
[333982098,1722666653438,-590.48,0.00016438,2]
[333982099,1722666653448,-514.68760879,0.00016438,2]
[333982100,1722666653458,-539.49,0.00016438,2]
[333982101,1722666653468,-500.0,0.00016438,2]
[333982102,1722666653477,-500.0,0.00016438,2]
[333982103,1722666653487,-505.62153376,0.00016438,2]
[333982104,1722666653497,-527.9392853,0.00016438,2]
[333982105,1722666653507,-500.0,0.00016438,2]
[333982106,1722666653517,-500.0,0.00016438,2]
[333982107,1722666653527,-1113.83,0.00016438,2]
[333982108,1722666653539,-500.0,0.00016438,2]
[333982109,1722666653880,-500.0,0.00016438,2]
[333982110,1722666653908,-500.0,0.00016438,2]
[333982111,1722666653917,-663.54,0.00016438,2]
[333982112,1722666653927,-500.0,0.00016438,2]
[333982113,1722666653937,-668.52,0.00016438,2]
[333982114,1722666653947,-500.0,0.00016438,2]
[333982115,1722666653956,-500.0,0.00016438,2]
[333982116,1722666653966,-500.0,0.00016438,2]
[333982117,1722666653980,-500.0,0.00016438,2]
[333982118,1722666653990,-500.0,0.00016438,2]
[333982119,1722666654001,-1284.57,0.00016438,2]
[333982120,1722666654011,-153.92795265,0.00016438,2]
[333982121,1722666654021,-500.0,0.00016438,2]
[333982122,1722666654033,-729.2,0.00016438,2]
[333982123,1722666654043,-500.0,0.00016438,2]
[333982124,1722666654053,-500.50449705,0.00016438,2]
[333982125,1722666654063,-500.0,0.00016438,2]
[333982126,1722666654073,-1148.49,0.00016438,2]
[333982127,1722666654083,-500.0,0.00016438,2]
[333982128,1722666654093,-375.17576,0.00016438,2]
[333982129,1722666654103,-500.0,0.00016438,2]
[333982130,1722666654113,-375.17576,0.00016438,2]
[333982131,1722666654123,-500.93911347,0.00016438,2]
[333982132,1722666654133,-650.33,0.00016438,2]
[333982133,1722666654143,-500.0,0.00016438,2]
[333982134,1722666654153,-1895.22,0.00016438,2]
[333982135,1722666654164,-527.89,0.00016438,2]
[333982136,1722666654173,-1895.22,0.00016438,2]
[333982137,1722666654183,-500.0,0.00016438,2]
[333982138,1722666654193,-622.33796944,0.00016438,2]
[333982139,1722666654203,-1895.22,0.00016438,2]
[333982140,1722666654213,-1657.53,0.00016438,2]
[333982141,1722666654223,-643.1,0.00016438,2]
[333982142,1722666654233,-1895.22,0.00016438,2]
[333982143,1722666654243,-500.0,0.00016438,2]
[333982144,1722666654253,-1895.22,0.00016438,2]
[333982145,1722666654263,-1895.22,0.00016438,2]
[333982146,1722666654273,-1895.22,0.00016438,2]
[333982147,1722666654283,-1895.22,0.00016438,2]
[333982148,1722666654293,-1895.22,0.00016438,2]
[333982149,1722666654303,-375.17576,0.00016438,2]
[333982150,1722666654313,-1895.22,0.00016438,2]
[333982151,1722666654323,-500.0,0.00016438,2]
[333982152,1722666654333,-375.17576,0.00016438,2]
[333982153,1722666654343,-1895.22,0.00016438,2]
[333982154,1722666654353,-192.65928275,0.00016438,2]
[333982155,1722666654363,-1895.22,0.00016438,2]
[333982156,1722666654373,-1385.68,0.00016438,2]
[333982157,1722666654383,-691.5,0.00016438,2]
[333982158,1722666654393,-1895.22,0.00016438,2]
[333982159,1722666654402,-1895.22,0.00016438,2]
[333982160,1722666654413,-500.0,0.00016438,2]
[333982161,1722666654422,-1895.22,0.00016438,2]
[333982162,1722666654431,-186.25837,0.00016438,2]
[333982163,1722666654441,-1895.22,0.00016438,2]
[333982164,1722666654451,-186.25837,0.00016438,2]
[333982165,1722666654461,-1895.22,0.00016438,2]
[333982166,1722666654471,-1895.22,0.00016438,2]
[333982167,1722666654481,-1895.22,0.00016438,2]
[333982168,1722666654490,-1895.22,0.00016438,2]
[333982169,1722666654500,-534.08,0.00016438,2]
[333982170,1722666654508,-1895.22,0.00016438,2]
[333982171,1722666654517,-500.0,0.00016438,2]
[333982172,1722666654526,-1895.22,0.00016438,2]
[333982173,1722666654535,-1895.22,0.00016438,2]
[333982174,1722666654544,-501.53891187,0.00016438,2]
[333982175,1722666654553,-500.0,0.00016438,2]
[333982176,1722666654561,-1895.43989734,0.00016438,2]
[333982177,1722666654571,-500.0,0.00016438,2]
[333982178,1722666654579,-923.84,0.00016438,2]
[333982179,1722666654588,-186.25837,0.00016438,2]
[333982180,1722666654597,-500.5659229,0.00016438,2]
[333982181,1722666654606,-523.62932537,0.00016438,2]
[333982182,1722666654616,-186.25837,0.00016438,2]
[333982183,1722666654628,-1314.98,0.00016438,2]
[333982184,1722666654638,-500.0,0.00016438,2]
[333982185,1722666654647,-891.69,0.00016438,2]
[333982186,1722666654657,-1413.97,0.00016438,2]
[333982187,1722666654667,-500.0,0.00016438,2]
[333982188,1722666654677,-500.0,0.00016438,2]
[333982189,1722666654688,-518.53,0.00016438,2]
[333982190,1722666654697,-504.93188729,0.00016438,2]
[333982191,1722666654707,-500.0,0.00016438,2]
[333982192,1722666654717,-500.0,0.00016438,2]
[333982193,1722666654728,-500.0,0.00016438,2]
[333982194,1722666654737,-151.0,0.00016438,2]
[333982195,1722666654747,-500.0,0.00016438,2]
[333982196,1722666654757,-500.0,0.00016438,2]
[333982197,1722666654767,-151.40003,0.00016438,2]
[333982198,1722666654776,-500.0,0.00016438,2]
[333982199,1722666654786,-1485.86,0.00016438,2]
[333982200,1722666654795,-500.0,0.00016438,2]
[333982201,1722666654805,-500.0,0.00016438,2]
[333982202,1722666654815,-500.0,0.00016438,2]
[333982203,1722666654826,-500.0,0.00016438,2]
[333982204,1722666654836,-500.0,0.00016438,2]
[333982205,1722666654847,-1833.06,0.00016438,2]
[333982206,1722666654858,-500.0,0.00016438,2]
[333982207,1722666654867,-500.0,0.00016438,2]
[333982208,1722666654877,-679.92,0.00016438,2]
[333982209,1722666654888,-500.0,0.00016438,2]
[333982210,1722666654898,-500.0,0.00016438,2]
[333982211,1722666654908,-500.0,0.00016438,2]
[333982212,1722666654918,-500.0,0.00016438,2]
[333982213,1722666654928,-500.0,0.00016438,2]
[333982214,1722666654938,-500.0,0.00016438,2]
[333982215,1722666654947,-500.0,0.00016438,2]
[333982216,1722666654957,-500.0,0.00016438,2]
[333982217,1722666654967,-500.0,0.00016438,2]
[333982218,1722666654976,-500.0,0.00016438,2]
[333982219,1722666654986,-1000.0,0.00016438,2]
[333982220,1722666654996,-559.25634361,0.00016438,2]
[333982221,1722666655006,-500.0,0.00016438,2]
[333982222,1722666655015,-500.0,0.00016438,2]
[333982223,1722666655025,-500.0,0.00016438,2]
[333982224,1722666655035,-500.0,0.00016438,2]
[333982225,1722666655045,-380.27880194,0.00016438,2]
[333982226,1722666655055,-500.0,0.00016438,2]
[333982227,1722666655065,-500.0,0.00016438,2]
[333982228,1722666655075,-528.86,0.00016438,2]
[333982229,1722666655084,-500.0,0.00016438,2]
[333982230,1722666655094,-500.0,0.00016438,2]
[333982231,1722666655104,-557.98,0.00016438,2]
[333982232,1722666655115,-500.0,0.00016438,2]
[333982233,1722666655125,-500.0,0.00016438,2]
[333982234,1722666655134,-500.0,0.00016438,2]
[333982235,1722666655144,-500.0,0.00016438,2]
[333982236,1722666655154,-500.0,0.00016438,2]
[333982237,1722666655164,-1392.35,0.00016438,2]
[333982238,1722666655174,-500.0,0.00016438,2]
[333982239,1722666655183,-500.0,0.00016438,2]
[333982240,1722666655193,-500.0,0.00016438,2]
[333982241,1722666655203,-500.0,0.00016438,2]
[333982242,1722666655212,-434.30115998,0.00016438,2]
[333982243,1722666655222,-500.0,0.00016438,2]
[333982244,1722666655232,-500.0,0.00016438,2]